fUSD/lending_fUSD_20250519
["ID","MTS","AMOUNT","RATE_DAILY","PERIOD"]
[361569133,1747618247873,-400.0,0.00013698,2]
[361569134,1747618247883,-400.0,0.00013698,2]
[361569135,1747618247892,-400.0,0.00013698,2]
[361569136,1747618247902,-400.0,0.00013698,2]
[361569137,1747618247911,-570.38,0.00013698,2]
[361569138,1747618247920,-400.0,0.00013698,2]
[361569139,1747618247929,-400.0,0.00013698,2]
[361569140,1747618247938,-400.0,0.00013698,2]
[361569141,1747618247948,-400.0,0.00013698,2]
[361569142,1747618247958,-523.63,0.00013698,2]
[361569143,1747618247969,-671.61,0.00013698,2]
[361569144,1747618247979,-400.0,0.00013698,2]
[361569145,1747618247988,-400.0,0.00013698,2]
[361569146,1747618247997,-470.91,0.00013698,2]
[361569147,1747618248007,-272.96629224,0.00013698,2]
[361569148,1747618248016,-651.52,0.00013698,2]
[361569149,1747618248026,-400.0,0.00013698,2]
[361569150,1747618248036,-400.0,0.00013698,2]
[361569151,1747618248045,-2233.38,0.00013698,2]
[361569152,1747618248055,-400.0,0.00013698,2]
[361569153,1747618248065,-1506.61,0.00013698,2]
[361569154,1747618248075,-400.0,0.00013698,2]
[361569155,1747618248089,-400.0,0.00013698,2]
[361569156,1747618248098,-400.0,0.00013698,2]
[361569157,1747618248108,-1209.79,0.00013698,2]
[361569158,1747618248118,-432.58,0.00013698,2]
[361569159,1747618248128,-400.0,0.00013698,2]
[361569160,1747618248138,-400.0,0.00013698,2]
[361569161,1747618248148,-400.0,0.00013698,2]
[361569162,1747618248158,-432.86,0.00013698,2]
[361569163,1747618248170,-400.0,0.00013698,2]
[361569164,1747618248180,-400.0,0.00013698,2]
[361569165,1747618248189,-416.13731204,0.00013698,2]
[361569166,1747618248199,-400.0,0.00013698,2]
[361569167,1747618248209,-400.0,0.00013698,2]
[361569168,1747618248221,-783.28,0.00013698,2]
[361569169,1747618248231,-400.0,0.00013698,2]
[361569170,1747618248240,-400.0,0.00013698,2]
[361569171,1747618248250,-400.0,0.00013698,2]
[361569172,1747618248260,-400.0,0.00013698,2]
[361569173,1747618248269,-598.56,0.00013698,2]
[361569174,1747618248279,-500.0,0.00013698,2]
[361569175,1747618248289,-400.0,0.00013698,2]
[361569176,1747618248299,-400.0,0.00013698,2]
[361569177,1747618248308,-400.0,0.00013698,2]
[361569178,1747618248318,-1305.51,0.00013698,2]
[361569179,1747618248327,-261.76762488,0.00013698,2]
[361569180,1747618248337,-400.0,0.00013698,2]
[361569181,1747618248346,-400.0,0.00013698,2]
[361569182,1747618248356,-594.73,0.00013698,2]
[361569183,1747618248365,-400.0,0.00013698,2]
[361569184,1747618248375,-400.0,0.00013698,2]
[361569185,1747618248384,-400.0,0.00013698,2]
[361569186,1747618248393,-400.0,0.00013698,2]
[361569187,1747618248403,-400.0,0.00013698,2]
[361569188,1747618248412,-484.19,0.00013698,2]
[361569189,1747618248421,-400.0,0.00013698,2]
[361569190,1747618248431,-591.02,0.00013698,2]
[361569191,1747618248441,-1069.06,0.00013698,2]
[361569192,1747618248450,-400.0,0.00013698,2]
[361569193,1747618248459,-1079.06,0.00013698,2]
[361569194,1747618248469,-400.0,0.00013698,2]
[361569195,1747618248478,-402.82790758,0.00013698,2]
[361569196,1747618248487,-400.0,0.00013698,2]
[361569197,1747618248495,-400.0,0.00013698,2]
[361569198,1747618248504,-400.0,0.00013698,2]
[361569199,1747618248514,-404.21313679,0.00013698,2]
[361569200,1747618248523,-400.0,0.00013698,2]
[361569201,1747618248532,-448.79247865,0.00013698,2]
[361569202,1747618248541,-400.0,0.00013698,2]
[361569203,1747618248551,-400.0,0.00013698,2]
[361569204,1747618248561,-400.0,0.00013698,2]
[361569205,1747618248570,-400.0,0.00013698,2]
[361569206,1747618248579,-400.0,0.00013698,2]
[361569207,1747618248589,-400.0,0.00013698,2]
[361569208,1747618248598,-400.0,0.00013698,2]
[361569209,1747618248608,-751.35,0.00013698,2]
[361569210,1747618248618,-712.36,0.00013698,2]
[361569211,1747618248628,-1166.44,0.00013698,2]
[361569212,1747618248637,-400.0,0.00013698,2]
[361569213,1747618248647,-400.0,0.00013698,2]
[361569214,1747618248657,-405.45,0.00013698,2]
[361569215,1747618248666,-400.0,0.00013698,2]
[361569216,1747618248675,-1132.61,0.00013698,2]
[361569217,1747618248685,-400.0,0.00013698,2]
[361569218,1747618248694,-400.0,0.00013698,2]
[361569219,1747618248703,-400.0,0.00013698,2]
[361569220,1747618248712,-1164.52,0.00013698,2]
[361569221,1747618248726,-400.0,0.00013698,2]
[361569222,1747618248735,-732.32,0.00013698,2]
[361569223,1747618248745,-402.08788544,0.00013698,2]
[361569224,1747618248754,-400.0,0.00013698,2]
[361569225,1747618248763,-1252.48,0.00013698,2]
[361569226,1747618248772,-812.84,0.00013698,2]
[361569227,1747618248781,-2540.94,0.00013698,2]
[361569228,1747618248791,-1046.28,0.00013698,2]
[361569229,1747618248800,-400.0,0.00013698,2]
[361569230,1747618248810,-400.0,0.00013698,2]
[361569231,1747618248819,-501.25629161,0.00013698,2]
[361569232,1747618248828,-450.0,0.00013698,2]
[361569233,1747618248838,-400.0,0.00013698,2]
[361569234,1747618248847,-883.57,0.00013698,2]
[361569235,1747618248856,-620.72,0.00013698,2]
[361569236,1747618248866,-575.99,0.00013698,2]
[361569237,1747618248875,-400.0,0.00013698,2]
[361569238,1747618248885,-400.0,0.00013698,2]
[361569239,1747618248894,-509.11,0.00013698,2]
[361569240,1747618248903,-400.84108858,0.00013698,2]
[361569241,1747618248913,-1510.53,0.00013698,2]
[361569242,1747618248922,-1530.67,0.00013698,2]
[361569243,1747618248932,-400.0,0.00013698,2]
[361569244,1747618248941,-400.0,0.00013698,2]
[361569245,1747618248951,-982.97,0.00013698,2]
[361569246,1747618248960,-400.0,0.00013698,2]
[361569247,1747618248971,-705.4,0.00013698,2]
[361569248,1747618248981,-400.0,0.00013698,2]
[361569249,1747618248990,-400.0,0.00013698,2]
[361569250,1747618249000,-400.0,0.00013698,2]
[361569251,1747618249009,-400.0,0.00013698,2]
[361569252,1747618249019,-400.0,0.00013698,2]
[361569253,1747618249028,-400.0,0.00013698,2]
[361569254,1747618249038,-926.74,0.00013698,2]
[361569255,1747618249047,-1000.0,0.00013698,2]
[361569256,1747618249057,-431.59,0.00013698,2]
[361569257,1747618249066,-400.0,0.00013698,2]
[361569258,1747618249076,-549.79,0.00013698,2]
[361569259,1747618249087,-400.0,0.00013698,2]
[361569260,1747618249097,-2680.97,0.00013698,2]
[361569261,1747618249106,-400.0,0.00013698,2]
[361569262,1747618249116,-1054.66,0.00013698,2]
[361569263,1747618249125,-400.0,0.00013698,2]
[361569264,1747618249135,-2773.47,0.00013698,2]
[361569265,1747618249144,-810.26,0.00013698,2]
[361569266,1747618249153,-400.0,0.00013698,2]
[361569267,1747618249163,-400.0,0.00013698,2]
[361569268,1747618249172,-516.38,0.00013698,2]
[361569269,1747618249181,-400.0,0.00013698,2]
[361569270,1747618249190,-1069.74,0.00013698,2]
[361569271,1747618249200,-400.56585634,0.00013698,2]
[361569272,1747618249210,-400.0,0.00013698,2]
[361569273,1747618249220,-400.0,0.00013698,2]
[361569274,1747618249229,-2389.76,0.00013698,2]
[361569275,1747618249239,-804.47,0.00013698,2]
[361569276,1747618249249,-667.2,0.00013698,2]
[361569277,1747618249258,-649.08,0.00013698,2]
[361569278,1747618249267,-525.41,0.00013698,2]
[361569279,1747618249276,-713.0,0.00013698,2]
[361569280,1747618249286,-400.0,0.00013698,2]
[361569281,1747618249296,-509.01,0.00013698,2]
[361569282,1747618249305,-400.0,0.00013698,2]
[361569283,1747618249315,-2071.27,0.00013698,2]
[361569284,1747618249325,-569.63,0.00013698,2]
[361569285,1747618249335,-840.06,0.00013698,2]
[361569286,1747618249416,-407.2,0.00013698,2]
[361569287,1747618249425,-1217.1,0.00013698,2]
[361569288,1747618249434,-400.0,0.00013698,2]
[361569289,1747618249443,-400.0,0.00013698,2]
[361569290,1747618249452,-400.0,0.00013698,2]
[361569291,1747618249461,-400.0,0.00013698,2]
[361569292,1747618249473,-400.0,0.00013698,2]
[361569293,1747618249482,-400.0,0.00013698,2]
[361569294,1747618249491,-1819.65,0.00013698,2]
[361569295,1747618249500,-400.0,0.00013698,2]
[361569296,1747618249510,-415.15,0.00013698,2]
[361569297,1747618249519,-400.0,0.00013698,2]
[361569298,1747618249528,-828.67,0.00013698,2]
[361569299,1747618249537,-400.0,0.00013698,2]
[361569300,1747618249546,-2199.4,0.00013698,2]
[361569301,1747618249555,-533.28,0.00013698,2]
[361569302,1747618249563,-971.46,0.00013698,2]
[361569303,1747618249572,-1612.81,0.00013698,2]
[361569304,1747618249581,-405.25292826,0.00013698,2]
[361569305,1747618249590,-400.0,0.00013698,2]
[361569306,1747618249599,-576.74,0.00013698,2]
[361569307,1747618249608,-1025.28,0.00013698,2]
[361569308,1747618249617,-1470.98,0.00013698,2]
[361569309,1747618249626,-202.01771898,0.00013698,2]
[361569310,1747618249645,-400.0,0.00013698,2]
[361569311,1747618249654,-400.0,0.00013698,2]
[361569312,1747618249663,-400.0,0.00013698,2]
[361569313,1747618249672,-400.0,0.00013698,2]
[361569314,1747618249681,-400.0,0.00013698,2]
[361569315,1747618249690,-13113.67,0.00013698,2]
[361569316,1747618249699,-937.4,0.00013698,2]
[361569317,1747618249708,-400.0,0.00013698,2]
[361569318,1747618249717,-185.41369514,0.00013698,2]
[361569319,1747618249727,-400.0,0.00013698,2]
[361569320,1747618249736,-1807.61,0.00013698,2]
[361569321,1747618249745,-402.96,0.00013698,2]
[361569322,1747618249754,-400.0,0.00013698,2]
[361569323,1747618249763,-1415.75,0.00013698,2]
[361569324,1747618249772,-400.0,0.00013698,2]
[361569325,1747618249781,-743.03,0.00013698,2]
[361569326,1747618249791,-400.0,0.00013698,2]
[361569327,1747618249800,-865.71,0.00013698,2]
[361569328,1747618249809,-400.0,0.00013698,2]
[361569329,1747618249819,-653.23,0.00013698,2]
[361569330,1747618249827,-400.0,0.00013698,2]
[361569331,1747618249837,-1195.15,0.00013698,2]
[361569332,1747618249846,-300.0,0.00013698,2]
[361569333,1747618249855,-400.0,0.00013698,2]
[361569334,1747618249864,-824.24,0.00013698,2]
[361569335,1747618249873,-400.0,0.00013698,2]
[361569336,1747618249882,-906.98,0.00013698,2]
[361569337,1747618249891,-2108.47,0.00013698,2]
[361569338,1747618249900,-4444.3,0.00013698,2]
[361569339,1747618249909,-1344.22,0.00013698,2]
[361569340,1747618249918,-400.0,0.00013698,2]
[361569341,1747618249927,-570.23,0.00013698,2]
[361569342,1747618249936,-400.0,0.00013698,2]
[361569343,1747618249945,-400.0,0.00013698,2]
[361569344,1747618249954,-1128.46,0.00013698,2]
[361569345,1747618249963,-400.0,0.00013698,2]
[361569346,1747618249975,-400.0,0.00013698,2]
[361569347,1747618249984,-570.19,0.00013698,2]
[361569348,1747618249993,-1359.92,0.00013698,2]
[361569349,1747618250002,-1359.92,0.00013698,2]
[361569350,1747618250011,-1359.92,0.00013698,2]
[361569351,1747618250021,-400.0,0.00013698,2]
[361569352,1747618250030,-400.0,0.00013698,2]
[361569353,1747618250039,-1899.07,0.00013698,2]
[361569354,1747618250048,-400.0,0.00013698,2]
[361569355,1747618250057,-400.0,0.00013698,2]
[361569356,1747618250066,-400.0,0.00013698,2]
[361569357,1747618250075,-1135.84,0.00013698,2]
[361569358,1747618250086,-400.0,0.00013698,2]
[361569359,1747618250099,-400.0,0.00013698,2]
[361569360,1747618250108,-941.11,0.00013698,2]
[361569361,1747618250117,-751.45,0.00013698,2]
[361569362,1747618250126,-739.6,0.00013698,2]
[361569363,1747618250135,-1151.63,0.00013698,2]
[361569364,1747618250144,-206.73276017,0.00013698,2]
[361569365,1747618250153,-529.18,0.00013698,2]
[361569366,1747618250162,-400.0,0.00013698,2]
[361569367,1747618250171,-400.0,0.00013698,2]
[361569368,1747618250181,-501.85,0.00013698,2]
[361569369,1747618250190,-1401.68,0.00013698,2]
[361569370,1747618250199,-400.0,0.00013698,2]
[361569371,1747618250208,-400.0,0.00013698,2]
[361569372,1747618250217,-400.0,0.00013698,2]
[361569373,1747618250226,-5399.51,0.00013698,2]
[361569374,1747618250235,-400.0,0.00013698,2]
[361569375,1747618250246,-402.45793042,0.00013698,2]
[361569376,1747618250255,-400.0,0.00013698,2]
[361569377,1747618250264,-400.0,0.00013698,2]
[361569378,1747618250274,-1791.61,0.00013698,2]
[361569379,1747618250283,-400.0,0.00013698,2]
[361569380,1747618250293,-541.59773264,0.00013698,2]
[361569381,1747618250302,-663.35,0.00013698,2]
[361569382,1747618250311,-514.42,0.00013698,2]
[361569383,1747618250320,-1521.12,0.00013698,2]
[361569384,1747618250329,-400.0,0.00013698,2]
[361569385,1747618250338,-2300.13,0.00013698,2]
[361569386,1747618250348,-667.97,0.00013698,2]
[361569387,1747618250357,-423.8,0.00013698,2]
[361569388,1747618250366,-7697.2,0.00013698,2]
[361569389,1747618250375,-400.0,0.00013698,2]
[361569390,1747618250383,-909.46,0.00013698,2]
[361569391,1747618250392,-400.0,0.00013698,2]
[361569392,1747618250401,-459.09,0.00013698,2]
[361569393,1747618250410,-669.82,0.00013698,2]
[361569394,1747618250420,-2133.93,0.00013698,2]
[361569395,1747618250429,-400.0,0.00013698,2]
[361569396,1747618250439,-1628.41,0.00013698,2]
[361569397,1747618250449,-4444.29,0.00013698,2]
[361569398,1747618250458,-497.6,0.00013698,2]
[361569399,1747618250468,-535.01,0.00013698,2]
[361569400,1747618250477,-4750.37,0.00013698,2]
[361569401,1747618250487,-5223.8,0.00013698,2]
[361569402,1747618250496,-682.46,0.00013698,2]
[361569403,1747618250505,-822.17,0.00013698,2]
[361569404,1747618250514,-1256.37,0.00013698,2]
[361569405,1747618250523,-976.99,0.00013698,2]
[361569406,1747618250532,-1259.99,0.00013698,2]
[361569407,1747618250541,-400.0,0.00013698,2]
[361569408,1747618250551,-400.0,0.00013698,2]
[361569409,1747618250560,-1159.21,0.00013698,2]
[361569410,1747618250569,-418.26,0.00013698,2]
[361569411,1747618250578,-1011.62,0.00013698,2]
[361569412,1747618250587,-7678.87,0.00013698,2]
[361569413,1747618250596,-1234.95,0.00013698,2]
[361569414,1747618250605,-1044.88,0.00013698,2]
[361569415,1747618250615,-540.33,0.00013698,2]
[361569416,1747618250624,-400.0,0.00013698,2]
[361569417,1747618250634,-7581.8,0.00013698,2]
[361569418,1747618250644,-400.0,0.00013698,2]
[361569419,1747618250653,-451.83,0.00013698,2]
[361569420,1747618250662,-2970.14,0.00013698,2]
[361569421,1747618250672,-653.9,0.00013698,2]
[361569422,1747618250681,-1190.78,0.00013698,2]
[361569423,1747618250691,-763.44,0.00013698,2]
[361569424,1747618250700,-400.0,0.00013698,2]
[361569425,1747618250709,-400.0,0.00013698,2]
[361569426,1747618250720,-694.31,0.00013698,2]
[361569427,1747618250731,-2878.21,0.00013698,2]
[361569428,1747618250740,-152.93322443,0.00013698,2]
[361569429,1747618250749,-400.0,0.00013698,2]
[361569430,1747618250758,-638.51,0.00013698,2]
[361569431,1747618250767,-2240.35,0.00013698,2]
[361569432,1747618250776,-466.59,0.00013698,2]
[361569433,1747618250786,-1753.7,0.00013698,2]
[361569434,1747618250795,-400.0,0.00013698,2]
[361569435,1747618250804,-400.0,0.00013698,2]
[361569436,1747618250813,-400.0,0.00013698,2]
[361569437,1747618250823,-1475.28,0.00013698,2]
[361569438,1747618250832,-653.07,0.00013698,2]
[361569439,1747618250841,-1837.99,0.00013698,2]
[361569440,1747618250850,-707.1,0.00013698,2]
[361569441,1747618250859,-668.33,0.00013698,2]
[361569442,1747618250868,-1181.82,0.00013698,2]
[361569443,1747618250877,-400.0,0.00013698,2]
[361569444,1747618250886,-13220.26,0.00013698,2]
[361569445,1747618250895,-740.42,0.00013698,2]
[361569446,1747618250904,-20194.16,0.00013698,2]
[361569447,1747618250913,-645.11,0.00013698,2]
[361569448,1747618250922,-400.0,0.00013698,2]
[361569449,1747618250931,-1070.81,0.00013698,2]
[361569450,1747618250941,-598.78,0.00013698,2]
[361569451,1747618250951,-1144.74,0.00013698,2]
[361569452,1747618250960,-1235.18,0.00013698,2]
[361569453,1747618250971,-1746.11,0.00013698,2]
[361569454,1747618250981,-400.0,0.00013698,2]
[361569455,1747618250990,-465.01,0.00013698,2]
[361569456,1747618250999,-400.0,0.00013698,2]
[361569457,1747618251008,-476.46,0.00013698,2]
[361569458,1747618251017,-400.0,0.00013698,2]
[361569459,1747618251026,-466.54,0.00013698,2]
[361569460,1747618251036,-400.0,0.00013698,2]
[361569461,1747618251046,-1306.51,0.00013698,2]
[361569462,1747618251056,-400.0,0.00013698,2]
[361569463,1747618251067,-567.26,0.00013698,2]
[361569464,1747618251076,-86918.49,0.00013698,2]
[361569465,1747618251089,-400.0,0.00013698,2]
[361569466,1747618251098,-400.0,0.00013698,2]
[361569467,1747618251107,-400.0,0.00013698,2]
[361569468,1747618251117,-400.0,0.00013698,2]
[361569469,1747618251126,-400.0,0.00013698,2]
[361569470,1747618251136,-1208.41,0.00013698,2]
[361569471,1747618251145,-1322.42,0.00013698,2]
[361569472,1747618251154,-400.0,0.00013698,2]
[361569473,1747618251164,-517.01245233,0.00013698,2]
[361569474,1747618251173,-1287.03,0.00013698,2]
[361569475,1747618251182,-1470.96,0.00013698,2]
[361569476,1747618251191,-845.6,0.00013698,2]
[361569477,1747618251200,-875.11,0.00013698,2]
[361569478,1747618251210,-875.11,0.00013698,2]
[361569479,1747618251224,-583.1,0.00013698,2]
[361569480,1747618251234,-673.3,0.00013698,2]
[361569481,1747618251243,-722.1,0.00013698,2]
[361569482,1747618251252,-1123.58,0.00013698,2]
[361569483,1747618251262,-1456.42,0.00013698,2]
[361569484,1747618251271,-400.0,0.00013698,2]
[361569485,1747618251280,-9003.06,0.00013698,2]
[361569486,1747618251289,-847.03,0.00013698,2]
[361569487,1747618251299,-400.0,0.00013698,2]
[361569488,1747618251308,-400.0,0.00013698,2]
[361569489,1747618251317,-2634.1,0.00013698,2]
[361569490,1747618251327,-462.29,0.00013698,2]
[361569491,1747618251336,-400.0,0.00013698,2]
[361569492,1747618251345,-400.0,0.00013698,2]
[361569493,1747618251354,-400.0,0.00013698,2]
[361569494,1747618251363,-400.0,0.00013698,2]
[361569495,1747618251372,-400.0,0.00013698,2]
[361569496,1747618251381,-717.9,0.00013698,2]
[361569497,1747618251390,-400.0,0.00013698,2]
[361569498,1747618251399,-1338.55,0.00013698,2]
[361569499,1747618251409,-999.25,0.00013698,2]
[361569500,1747618251418,-400.0,0.00013698,2]
[361569501,1747618251427,-400.0,0.00013698,2]
[361569502,1747618251436,-400.0,0.00013698,2]
[361569503,1747618251444,-400.0,0.00013698,2]
[361569504,1747618251453,-1329.2,0.00013698,2]
[361569505,1747618251463,-400.0,0.00013698,2]
[361569506,1747618251474,-500.0,0.00013698,2]
[361569507,1747618251483,-400.0,0.00013698,2]
[361569508,1747618251492,-400.0,0.00013698,2]
[361569509,1747618251502,-17287.95,0.00013698,2]
[361569510,1747618251511,-400.0,0.00013698,2]
[361569511,1747618251520,-400.0,0.00013698,2]
[361569512,1747618251530,-1342.68,0.00013698,2]
[361569513,1747618251539,-400.0,0.00013698,2]
[361569514,1747618251548,-400.0,0.00013698,2]
[361569515,1747618251557,-400.0,0.00013698,2]
[361569516,1747618251566,-400.0,0.00013698,2]
[361569517,1747618251575,-880.38,0.00013698,2]
[361569518,1747618251585,-400.0,0.00013698,2]
[361569519,1747618251594,-400.0,0.00013698,2]
[361569520,1747618251603,-400.0,0.00013698,2]
[361569521,1747618251612,-1578.33,0.00013698,2]
[361569522,1747618251622,-400.0,0.00013698,2]
[361569523,1747618251631,-400.0,0.00013698,2]
[361569524,1747618251641,-400.0,0.00013698,2]
[361569525,1747618251650,-503.91927632,0.00013698,2]
[361569526,1747618251659,-2820.39,0.00013698,2]
[361569527,1747618251668,-400.0,0.00013698,2]
[361569528,1747618251677,-794.17,0.00013698,2]
[361569529,1747618251686,-400.0,0.00013698,2]
[361569530,1747618251695,-724.98,0.00013698,2]
[361569531,1747618251704,-914.79,0.00013698,2]
[361569532,1747618251713,-400.0,0.00013698,2]
[361569533,1747618251727,-400.0,0.00013698,2]
[361569534,1747618251736,-404.66331502,0.00013698,2]
[361569535,1747618251745,-400.0,0.00013698,2]
[361569536,1747618251755,-1378.97,0.00013698,2]
[361569537,1747618251764,-2576.56,0.00013698,2]
[361569538,1747618251773,-1168.89,0.00013698,2]
[361569539,1747618251783,-570.4,0.00013698,2]
[361569540,1747618251792,-2271.47,0.00013698,2]
[361569541,1747618251801,-894.14,0.00013698,2]
[361569542,1747618251810,-400.0,0.00013698,2]
[361569543,1747618251819,-702.7,0.00013698,2]
[361569544,1747618251828,-2906.45,0.00013698,2]
[361569545,1747618251838,-446.64,0.00013698,2]
[361569546,1747618251847,-1478.29,0.00013698,2]
[361569547,1747618251857,-400.0,0.00013698,2]
[361569548,1747618251866,-1492.52,0.00013698,2]
[361569549,1747618251875,-500.0,0.00013698,2]
[361569550,1747618251885,-223.15056515,0.00013698,2]
[361569551,1747618251894,-400.0,0.00013698,2]
[361569552,1747618251903,-825.47,0.00013698,2]
[361569553,1747618251913,-344.82127888,0.00013698,2]
[361569554,1747618251923,-6937.04,0.00013698,2]
[361569555,1747618251932,-1353.55,0.00013698,2]
[361569556,1747618251941,-1770.0,0.00013698,2]
[361569557,1747618251951,-400.0,0.00013698,2]
[361569558,1747618251960,-301.32824176,0.00013698,2]
[361569559,1747618251969,-1160.93,0.00013698,2]
[361569560,1747618251986,-193.21996533,0.00013698,2]
[361569561,1747618251996,-400.0,0.00013698,2]
[361569562,1747618252006,-539.91,0.00013698,2]
[361569563,1747618252018,-400.0,0.00013698,2]
[361569564,1747618252027,-6199.16,0.00013698,2]
[361569565,1747618252037,-529.76,0.00013698,2]
[361569566,1747618252046,-400.0,0.00013698,2]
[361569567,1747618252056,-400.0,0.00013698,2]
[361569568,1747618252065,-4140.12,0.00013698,2]
[361569569,1747618252074,-407.4712668,0.00013698,2]
[361569570,1747618252084,-400.0,0.00013698,2]
[361569571,1747618252098,-400.0,0.00013698,2]
[361569572,1747618252107,-747.11,0.00013698,2]
[361569573,1747618252117,-2870.89,0.00013698,2]
[361569574,1747618252126,-400.0,0.00013698,2]
[361569575,1747618252137,-1266.19,0.00013698,2]
[361569576,1747618252146,-2396.04,0.00013698,2]
[361569577,1747618252155,-400.0,0.00013698,2]
[361569578,1747618252165,-400.0,0.00013698,2]
[361569579,1747618252174,-400.0,0.00013698,2]
[361569580,1747618252184,-2937.12,0.00013698,2]
[361569581,1747618252193,-2000.0,0.00013698,2]
[361569582,1747618252203,-400.0,0.00013698,2]
[361569583,1747618252212,-568.35,0.00013698,2]
[361569584,1747618252226,-400.0,0.00013698,2]
[361569585,1747618252235,-400.0,0.00013698,2]
[361569586,1747618252244,-400.0,0.00013698,2]
[361569587,1747618252255,-496.86,0.00013698,2]
[361569588,1747618252264,-964.04,0.00013698,2]
[361569589,1747618252274,-400.0,0.00013698,2]
[361569590,1747618252283,-1338.97,0.00013698,2]
[361569591,1747618252292,-2131.51,0.00013698,2]
[361569592,1747618252302,-400.0,0.00013698,2]
[361569593,1747618252311,-400.0,0.00013698,2]
[361569594,1747618252320,-400.0,0.00013698,2]
[361569595,1747618252329,-400.0,0.00013698,2]
[361569596,1747618252338,-1851.1,0.00013698,2]
[361569597,1747618252347,-405.13263768,0.00013698,2]
[361569598,1747618252356,-403.29285829,0.00013698,2]
[361569599,1747618252365,-400.0,0.00013698,2]
[361569600,1747618252374,-400.0,0.00013698,2]
[361569601,1747618252383,-5340.82,0.00013698,2]
[361569602,1747618252392,-400.53373836,0.00013698,2]
[361569603,1747618252402,-404.20980846,0.00013698,2]
[361569604,1747618252411,-2888.47,0.00013698,2]
[361569605,1747618252420,-405.01489068,0.00013698,2]
[361569606,1747618252429,-400.0,0.00013698,2]
[361569607,1747618252438,-151.0,0.00013698,2]
[361569608,1747618252447,-400.0,0.00013698,2]
[361569609,1747618252457,-448.63,0.00013698,2]
[361569610,1747618252466,-400.0,0.00013698,2]
[361569611,1747618252479,-501.49781668,0.00013698,2]
[361569612,1747618252488,-608.02,0.00013698,2]
[361569613,1747618252497,-948.73,0.00013698,2]
[361569614,1747618252507,-400.0,0.00013698,2]
[361569615,1747618252517,-2515.17,0.00013698,2]
[361569616,1747618252526,-400.0,0.00013698,2]
[361569617,1747618252535,-400.0,0.00013698,2]
[361569618,1747618252545,-1495.79,0.00013698,2]
[361569619,1747618252554,-400.0,0.00013698,2]
[361569620,1747618252564,-400.0,0.00013698,2]
[361569621,1747618252574,-401.91926841,0.00013698,2]
[361569622,1747618252583,-151.0,0.00013698,2]
[361569623,1747618252591,-1381.83,0.00013698,2]
[361569624,1747618252601,-1092.15,0.00013698,2]
[361569625,1747618252610,-723.78,0.00013698,2]
[361569626,1747618252626,-400.0,0.00013698,2]
[361569627,1747618252636,-614.1,0.00013698,2]
[361569628,1747618252646,-151.0,0.00013698,2]
[361569629,1747618252655,-169.26955578,0.00013698,2]
[361569630,1747618252665,-400.0,0.00013698,2]
[361569631,1747618252675,-400.0,0.00013698,2]
[361569632,1747618252684,-400.0,0.00013698,2]